Cogmind - Beta 15 @@@ ROGUE MODE // 2025.06.23 @ 16:41:17 Player: PANDORA Result: Destroyed by EX-DEC with AWS/EX-DEC Performance ------------- Evolutions (0) 0 Regions Visited (3) 600 Robots Destroyed (34) 170 Value Destroyed (638) 638 Prototype IDs (1) 20 Alien Tech Used (0) 0 Bonus (300) 300 TOTAL SCORE: 1728 Bonus ------- Aligned with FarCom 300 Cogmind --------- Core Integrity 0/250 Matter 286/300 Energy 100/100 System Corruption 3% Temperature Cool (0) Movement Core (400) Ox7 Location -10/Exiles Parts ------- > --- POWER (1) -------- (None) > --- PROPULSION (2) --- (None) > --- UTILITY (2) ------ Large Storage Unit > --- WEAPON (2) ------- Assault Rifle > --- INVENTORY (15) --- Light Ion Engine Light Ion Engine Improved Treads Improved Treads Seismic Detector Core Shielding Core Shielding Small Laser Light Assault Rifle Autogun Autogun Datajack Peak State ------------ > --- POWER ------------ Light Ion Engine > --- PROPULSION ------- Improved Treads Improved Treads > --- UTILITY ---------- Large Storage Unit Experimental Sensor Array > --- WEAPON ----------- Assault Rifle Autogun > --- INVENTORY -------- Light Ion Engine Light Ion Engine Improved Treads Improved Treads Seismic Detector Core Shielding Core Shielding Small Laser Light Assault Rifle Autogun Autogun Datajack [Rating: 19] Favorites ----------- Power Ion Engine Engine Ion Engine Propulsion Improved Treads Treads Improved Treads Utility Large Storage Unit Device Experimental Sensor Array Storage Large Storage Unit Processor Signal Interpreter Protection Core Shielding Weapon Light Assault Rifle Ballistic Gun Light Assault Rifle Build | -11 -10 -10 -10 ------- Run | Yrd Mat Min Exi Slots Evolved . | . . . . Power . | . . . . Propulsion . | . . . . Utility . | . . . . Weapon . | . . . . Parts Attached 22 | 5 14 2 1 Power 3 | 1 1 1 . Engine 3 | 1 1 1 . Core . | . . . . Reactor . | . . . . Propulsion 6 | 2 4 . . Treads 6 | 2 4 . . Leg . | . . . . Wheel . | . . . . Hover . | . . . . Flight . | . . . . Utility 7 | . 6 . 1 Device 2 | . 1 . 1 Storage 2 | . 2 . . Processor 2 | . 2 . . Hackware . | . . . . Protection 1 | . 1 . . Artifact . | . . . . Weapon 6 | 2 3 1 . Energy Gun . | . . . . Energy Cannon . | . . . . Ballistic Gun 6 | 2 3 1 . Ballistic Cannon . | . . . . Launcher . | . . . . Special Weapon . | . . . . Impact Weapon . | . . . . Slashing Weapon . | . . . . Piercing Weapon . | . . . . Special Melee Weapon . | . . . . Unidentified Prototypes 1 | . . . 1 Parts Lost 6 | . . 1 5 Power 1 | . . . 1 Propulsion 2 | . . . 2 Utility 1 | . . . 1 Weapon 2 | . . 1 1 Highest Loss Streak 5 | . . 1 5 To Critical Strikes . | . . . . Average Backups 9 | 2 7 13 12 Power 1 | . 1 2 2 Propulsion 1 | . 1 2 2 Utility 2 | . 1 3 3 Weapon 3 | 1 2 4 4 Tool/Special . | . . . . Unused Backups 13 | . 3 . 10 Power 2 | . . . 2 Propulsion 4 | . 2 . 2 Utility 2 | . 1 . 1 Weapon 4 | . . . 4 Tool/Special 1 | . . . 1 Average Slot Usage (%) 99 | . 99 99 99 Engine 14 | . 14 14 14 Treads 27 | . 28 28 27 Device 3 | . 1 . 12 Storage 13 | . 12 14 14 Processor 7 | . 7 14 1 Protection 3 | . 5 . . Ballistic Gun 27 | . 28 27 28 Peak Build Rating 19 | 5 12 13 19 Average Rating 10 | 4 8 12 18 On Entrance 7 | . 5 12 12 Naked Turns . | . . . . Heaviest Build 32 | 7 32 31 29 Greatest Support 46 | 40 46 46 46 Greatest Overweight (x) 9 | . . . 9 Average Overweight (x) . | . . . . Largest Inventory Capacity 15 | 5 15 15 15 Average Capacity 14 | 5 14 15 15 Most Carried 15 | 5 12 15 13 Average Carried 9 | 2 7 13 12 Final Capacity 15 | 5 15 15 15 Final Carried 13 | 4 12 13 12 Class Distribution -------------------- 100% | Mutant Dominant Class ---------------- Mutant | -10/Materials Mutant | -10/Mines Mutant | -10/Exiles Resources | -11 -10 -10 -10 ----------- Run | Yrd Mat Min Exi Matter Collected 763 | 209 364 190 . Remotely . | . . . . Salvage Created 815 | 20 517 278 . Parts 68 | 6 39 23 . Haulers Intercepted . | . . . . Recyclers Shooed . | . . . . Parts Field Recycled . | . . . . Retrieved Matter . | . . . . Parts Self-Destructed . | . . . . Prevented . | . . . . Kills | -11 -10 -10 -10 ------- Run | Yrd Mat Min Exi Combat Hostiles Destroyed 27 | . 15 12 . Guns 27 | . 15 12 . Classes Destroyed 7 | 1 5 1 . Worker 1 | . 1 . . Tunneler 1 | 1 . . . Recycler 1 | . . 1 . Operator 2 | . 2 . . Watcher 2 | . 2 . . Swarmer 16 | . 6 10 . Grunt 11 | . 9 2 . Best Kill Streak 5 | 1 4 5 . Combat Bots Only 4 | . 4 3 . Max Kills in Single Turn 2 | 1 2 2 . Gunslinging . | . . . . Exploded . | . . . . Melee . | . . . . Uniques/NPCs Destroyed . | . . . . Combat | -11 -10 -10 -10 -------- Run | Yrd Mat Min Exi Hostile Shots Fired 166 | . 81 57 28 Missed 46 | . 24 13 9 Hits 120 | . 57 44 19 Projectile 120 | . 57 44 19 Critical Strikes 3 | . 1 1 1 Damage Taken 1367 | . 549 382 436 Core 252 | . 78 47 127 Absorbed by Shields . | . . . . Redirected to Shielding 4 | . 4 . . Core Remaining (%) 100 | 100 . . . Volleys Fired 103 | 5 70 27 1 Largest 2 | 2 2 2 2 Hottest 46 | 40 46 46 43 Shots Fired 206 | 10 140 53 3 Gun 206 | 10 140 53 3 Cannon . | . . . . Launcher . | . . . . Special . | . . . . Kinetic 206 | 10 140 53 3 Thermal . | . . . . Explosive . | . . . . Electromagnetic . | . . . . Robot Hit Streak 7 | 2 7 4 3 Robot Miss Streak 5 | 1 4 5 1 Penetration Max . | . . . . Secondary Targets . | . . . . Shots Hit Robots 115 | 6 82 25 2 Core Hits 56 | 2 39 15 . Critical Kills . | . . . . Critical Parts Destroyed 1 | . . 1 . Critical Strikes 1 | . . 1 . Destroy 1 | . . 1 . Melee Attacks . | . . . . Impact . | . . . . Slashing . | . . . . Piercing . | . . . . Sneak Attacks . | . . . . Combat Hostiles . | . . . . Follow-up Attacks . | . . . . Damage Inflicted 1291 | 43 769 451 28 Guns 1244 | 43 747 426 28 Cannons . | . . . . Explosions . | . . . . Melee . | . . . . Ramming 47 | . 22 25 . Kinetic 1244 | 43 747 426 28 Thermal . | . . . . Explosive . | . . . . Electromagnetic . | . . . . Impact . | . . . . Slashing . | . . . . Piercing . | . . . . Highest Corruption 3 | . 1 1 3 Average Corruption 1 | . 1 1 1 Corruption Purged . | . . . . Corruption Blocked . | . . . . Effects 16 | . 8 4 4 Message Errors 6 | . 3 1 2 Heat Flow Errors 2 | . 2 . . Energy Discharges 2 | . 1 1 . Data Loss (minor) 2 | . . 1 1 Misfires 3 | . 1 1 1 Weapon Failures 1 | . 1 . . Overload Shots . | . . . . Overflow Damage . | . . . . Projectiles . | . . . . Explosions . | . . . . Melee . | . . . . Knockbacks . | . . . . Impact . | . . . . Kinetic . | . . . . Secondary . | . . . . Self-Inflicted Damage . | . . . . Shots . | . . . . Rammed 12 | . 4 8 . Targets Rammed 14 | . 5 9 . Kicked . | . . . . Crushed 2 | . 1 1 . Highest Temperature 193 | . 193 35 2 Average Temperature 22 | . 33 9 1 Received Heat Transfer 249 | . 198 51 . Siege Activations . | . . . . Martial Activations . | . . . . Shielding Activations . | . . . . Robots Disrupted . | . . . . Combat Hostiles . | . . . . Robots Corrupted . | . . . . Combat Hostiles . | . . . . Parts Fried . | . . . . Impact Corruptions . | . . . . Robots Melted . | . . . . Combat Hostiles . | . . . . Parts Melted . | . . . . Heat Transferred . | . . . . Parts Sabotaged . | . . . . Parts Stolen . | . . . . Parts Stripped . | . . . . Power Chain Reactions . | . . . . Alert | -11 -10 -10 -10 ------- Run | Yrd Mat Min Exi Maximum Alert Level . | . . . . Low Security (%) 100 | 100 100 100 . Level 1 . | . . . . Level 2 . | . . . . Level 3 . | . . . . Level 4 . | . . . . Level 5 . | . . . . High Security . | . . . . Max Security . | . . . . Peak Influence 190 | 5 111 190 . Initial 25 | . . 25 . Average 53 | . 41 91 . Influence Increases 758 | 5 413 340 . Destroy 0b10 Robot/C 540 | . 300 240 . Destroy 0b10 Robot/NC 35 | 5 25 5 . Destroy Leader 134 | . 84 50 . Successful Hack 4 | . 4 . . Lose Combat Pursuer 45 | . . 45 . Influence Decreases 758 | 5 348 335 70 Entered New Map 110 | . . 40 70 Time Decay 638 | 5 348 285 . Lost Part 10 | . . 10 . Squads Dispatched 5 | . 5 . . Investigation 3 | . 3 . . Extermination . | . . . . Reinforcement 2 | . 2 . . Assault . | . . . . Garrison . | . . . . Intercept . | . . . . Searches Triggered . | . . . . Construction Impeded . | . . . . Haulers Reinforced . | . . . . Active Scanning Responses . | . . . . Cargo Convoy Interrupts . | . . . . Stealth | -11 -10 -10 -10 --------- Run | Yrd Mat Min Exi Distress Signals . | . . . . Communications Jammed . | . . . . Distress Signals . | . . . . Times Spotted 49 | . 29 16 4 Peak Tracking Total 13 | . 4 3 13 Tactical Retreats 2 | . . 2 . Traps | -11 -10 -10 -10 ------- Run | Yrd Mat Min Exi Traps Triggered 4 | . 4 . . Indirectly . | . . . . Trap Hack Attempts . | . . . . Triggered . | . . . . Disarmed 4 | . 4 . . Reprogrammed . | . . . . Reused . | . . . . Traps Extracted . | . . . . Installed . | . . . . Triggered . | . . . . Machines | -11 -10 -10 -10 ---------- Run | Yrd Mat Min Exi Machines Disabled 1 | . . . 1 Max in Single Turn 1 | . . . 1 Machines Repaired . | . . . . Machines Dismantled . | . . . . Machines Sabotaged . | . . . . Overloaded Fab Kills . | . . . . Hacking | -11 -10 -10 -10 --------- Run | Yrd Mat Min Exi Machines Accessed 5 | . 5 . . Terminals 4 | . 4 . . Fabricators . | . . . . Repair Stations . | . . . . Recycling Units 1 | . 1 . . Scanalyzers . | . . . . Garrison Access . | . . . . Total Hacks 11 | . 11 . . Successful 5 | . 5 . . Failed 6 | . 6 . . Catastrophic 2 | . 2 . . Database Lockouts . | . . . . Manual 1 | . 1 . . Terminals 7 | . 7 . . Fabricators . | . . . . Repair Stations . | . . . . Recycling Units 4 | . 4 . . Scanalyzers . | . . . . Garrison Access . | . . . . Terminal Hacks 5 | . 5 . . Alert Level 1 | . 1 . . Locate Traps 3 | . 3 . . Disarm Traps 1 | . 1 . . Fabricator Hacks . | . . . . Repair Station Hacks . | . . . . Recycling Unit Hacks . | . . . . Scanalyzer . | . . . . Garrison Access Hacks . | . . . . Unauthorized Hacks . | . . . . Terminals . | . . . . Fabricators . | . . . . Repair Stations . | . . . . Recycling Units . | . . . . Scanalyzers . | . . . . Garrison Access . | . . . . Data Cores Recovered . | . . . . Used . | . . . . Hacking Detections 3 | . 3 . . Full Trace Events . | . . . . Feedback Events . | . . . . Feedback Blocked . | . . . . Robot Schematics Acquired . | . . . . Robots Built . | . . . . Authchips . | . . . . Time . | . . . . Total Robot Build Rating . | . . . . Part Schematics Acquired . | . . . . Parts Built . | . . . . Authchips . | . . . . Time . | . . . . Total Part Build Rating . | . . . . Parts Repaired . | . . . . Time . | . . . . Parts Recycled . | . . . . Recycled Matter . | . . . . Retrieved Matter . | . . . . Retrieved Components . | . . . . Parts Scanalyzed . | . . . . Part Schematics Acquired . | . . . . Parts Damaged . | . . . . Bothacking | -11 -10 -10 -10 ------------ Run | Yrd Mat Min Exi Used RIF Installer . | . . . . Robots Hacked . | . . . . Non-combat . | . . . . Combat . | . . . . Robot Hacks Applied . | . . . . Relay Couplers Released . | . . . . Fabnet Peak Effective % . | . . . . Robots Rewired . | . . . . Allies Hacked . | . . . . Hacks Repelled . | . . . . Allies | -11 -10 -10 -10 -------- Run | Yrd Mat Min Exi Total Allies . | . . . . Largest Group . | . . . . Highest-Rated Group . | . . . . Highest-Rated Ally . | . . . . Total Orders . | . . . . Ally Attacks . | . . . . Total Damage . | . . . . Kills . | . . . . Allies Corrupted . | . . . . Allies Melted . | . . . . Intel | -11 -10 -10 -10 ------- Run | Yrd Mat Min Exi Active Infowar (turns) 683 | . 136 . 547 Sensors 547 | . . . 547 Seismic 136 | . 136 . . Robot Analysis Total . | . . . . Derelict Logs Recovered . | . . . . Drone Launches . | . . . . Drone Recoveries . | . . . . Exploration | -11 -10 -10 -10 ------------- Run | Yrd Mat Min Exi Turns Passed 3180 | 93 1794 691 602 Spaces Moved 1771 | 52 972 375 372 Core 16 | 15 . . 1 Treads 1755 | 37 972 375 371 Legs . | . . . . Wheels . | . . . . Hover . | . . . . Flight . | . . . . Fastest Speed 50 | 50 160 160 160 Average Speed 159 | 128 160 160 161 Slowest Speed 500 | 160 160 160 500 Overloaded Moves . | . . . . Propulsion Burnouts . | . . . . Robots Hopped . | . . . . Potential Cave-ins . | . . . . Cave-ins Triggered . | . . . . Exploration Rate (%) 60 | 4 96 58 85 Regions Visited 3 Branch Regions 2 Pre-discovered Areas . | . . . . Known Exits Taken 2 | . 1 1 . Unknown Exits Taken 1 | 1 . . . Scrap Searched . | . . . . Spaces Dug . | . . . . Terrain Destroyed . | . . . . Melee . | . . . . Projectile . | . . . . AOE . | . . . . Terrain Rammed . | . . . . Walls Destroyed . | . . . . Machines Disabled . | . . . . Actions | -11 -10 -10 -10 --------- Run | Yrd Mat Min Exi Total 1961 | 70 1097 419 375 Wait 3 | . . 3 . Move 1768 | 51 971 374 372 Hop . | . . . . Pick Up 35 | 9 23 3 . Fast Attach . | . . . . Attach 11 | 5 4 1 1 Detach . | . . . . Swap 12 | . 11 1 . Drop 15 | . 13 1 1 Fire 103 | 5 70 27 1 Melee . | . . . . Ram . | . . . . Kick . | . . . . Crush 14 | . 5 9 . Escape Stasis . | . . . . Rewire . | . . . . Trap . | . . . . Miscellaneous . | . . . . Route ------- -11/Scrapyard -10/Materials (discovered 5 exits: *Mat x3 / *Min / [*Sub]) -10/Mines (discovered 3 exits: *Mat x2 / *Exi) -10/Exiles History --------- Turn | Location | Event 4 | -11/Scrapyard | Discovered new exit (range 15) 94 | -11/Scrapyard | Entered Materials 308 | -10/Materials | Build established: Mutant 493 | -10/Materials | Discovered new exit (range 4) 694 | -10/Materials | Discovered new exit (range 13) 984 | -10/Materials | Discovered new exit (range 5) 1024 | -10/Materials | Discovered new exit (range 9) 1638 | -10/Materials | Discovered new exit (range 7) 1828 | -10/Materials | Identified exit to Materials 1886 | -10/Materials | Identified exit to Mines 1888 | -10/Materials | Entered Mines 1909 | -10/Mines | Found a damaged Exp. Sensor Array with a note attached 1912 | -10/Mines | Found Prototype Device 1958 | -10/Mines | Discovered exit to Materials (range 10) 2254 | -10/Mines | Discovered exit to Materials (range 8) 2573 | -10/Mines | Deemed a non-threat by the Exiles lab entrance 2573 | -10/Mines | Discovered new exit (range 5) 2577 | -10/Mines | Identified exit to Exiles 2579 | -10/Mines | Entered Exiles 2621 | -10/Exiles | Met 8R-AWN 2633 | -10/Exiles | Identified Exp. Sensor Array 2650 | -10/Exiles | Met EX-HEX 2698 | -10/Exiles | Met EX-BIN 2720 | -10/Exiles | Aligned with FarCom system 2722 | -10/Exiles | Given EX-Vault access code 2831 | -10/Exiles | Met EX-DEC 3027 | -10/Exiles | Visited The Gauntlet 3167 | -10/Exiles | Attacked by the Exiles 3171 | -10/Exiles | Core integrity fell below 50% 3176 | -10/Exiles | Core integrity fell below 20% 3181 | -10/Exiles | Destroyed by EX-DEC with AWS/EX-DEC Last Messages --------------- EX-DEC: Ah I see we have a visitor. One wrong move in here and I'll invert your atomic chain! 02833_ EX-DEC: "Oops, I hope HEX didn't hear that..." 02984_ TZKXIEDI:VZIFNC,TZTQKJJRURS 03167_ System corrupted: FCS attempts to trigger Assault Rifle. 03167_ System corrupted: Assault Rifle misfires. 03167_ EXILES: Hostile robot within lab perimeter. Defensive protocols time, folks! 03169_ EX-DEC: "Let's see what this bad boy can do..." 03169_ EX-DEC deploys DAS Turret. 03171_ Machine disabled. 03174_ Imp. Treads destroyed. 03176_ Knocked back. 03180_ Exp. Sensor Array destroyed. 03180_ Autogun destroyed. 03180_ Lgt. Ion Engine destroyed. Map ----- +----------------------------------------------------+ | #??#" """""" " "" ##???### | | ???#"# "" """ " #####"" | | ???#### " " " | | ??????### | | ????????### | | ??????????## | | ???????????## | | ????????????##" | | ?????????????#""" """""" | | ????????????##" ######""" | | ????????????#"" ""##????#####""" | | ???????????##""" """##?????????##""" | | ???????????#""" """##???????????#"""" | | ???????????#""" ""#????????????#"" | | ???????????#"" ###?####??????"""" | | ???????????#""" ##aaa##????? | | ???????????#""t ""??? | | ???????????##"" a??? | | ????????????#""" z ?? | | ????????????## ???? | | ?????????????#" a" ???? "" | | ?????????????#"""" ""???????"" " " | | ?????????????#"" ""#?????????##""" " | | ?????????????#" % """#??????????????""" | | ?????????????#""" """#????????????????? | | ?????????????## @ % ""##????????????????? | | ??????????????#"" % "##?????????????????? | | ??????????????##""" ##??????????????????? | | ???????????????##"""" ##???????????????????? | | ????????????????### #????????????????????? | | ??????????????????##### ##????????????????????? | | ??????????????????????##c #?????????????????????? | | ???????????????????????# #?????????????????????? | | ???????????????????????# #?????????????????????? | | ???????????????????????# #?????????????????????? | | ??????????????###??????# #?????????????????????? | | ????"""""???#"""""?????# #?????????????????????? | | ?#"""""""????"""""""???# #?????????????????????? | | ?"""""" "#??#" """"#??# #?????????????????????? | | "#""" """????"" """???# #?????????????????????? | | "#"" ""????"" ""???# #?????????????????????? | | "###"""########"""###### #######???????????????? | | """" """""""" """""" """""""#??????????????? | | """ """"""" "#??????????????? | | " "??????????? | | " " "?????????? | | " "???????????? | | "" #"" ???????????? | | "" " """"" " """" """""#??????????????? | | ####"""###""###"""########"""######??????????????? | +----------------------------------------------------+ Best States ------------- Heat Dissipation 25 Energy Generation 10 Energy Capacity 250 Matter Stores 300 Matter Capacity 300 Sight Range 16 Robot Scan Range 20 Terrain Scan Density 10 Core Shielding 20 Evasion (%) 50 Targeting Accuracy 5 Recoil Reduction 2 Item Schematics ----------------- None Robot Schematics ------------------ None Fabricated ------------ Nothing Repaired ---------- Nothing Alien Tech Used ----------------- None Achievements -------------- None Challenges ------------ None Game ------ Seed PlexusControlShearcannon Manual? 0 Play Time 00:32:36 Cumulative 5.0 hours Start 2025.06.23 @ 15:45:02 End 2025.06.23 @ 16:41:17 Sessions 1 Manual Loads 0 Difficulty Rogue Special Mode None Game No. 6 Rogue 6 Adventurer 0 Explorer 0 Win Type - Total 0 Types 0/0/0/0/0/0/0/0/0/0 Lore% 4 Gallery% 6 Achievement% 8 Wizard Run 0 Options --------- Layout 1 ASCII 0 Keyboard 0 Movement Mouse Keybinds 0 Fullscreen 0 Font 16/Miniblock Map View 50x40 Zoom Use 0% Tactical HUD 1 Map Filters NONE Filters NONE Steam 0 RUN: ef135d3d-4d71-4f03-b5b8-8cf9280655a3